Cogmind - Beta 16.1 @@@ ROGUE MODE // 2026.02.17 @ 16:13:59 Player: Minty Result: Destroyed self with Grenade Launcher Performance ------------- Evolutions (0) 0 Regions Visited (2) 400 Robots Destroyed (46) 230 Value Destroyed (1142) 1142 Prototype IDs (6) 120 Alien Tech Used (0) 0 Bonus (-10) -10 TOTAL SCORE: 1882 Bonus ------- Friendly Fire -10 Cogmind --------- Core Integrity 0/250 Matter 4/300 Energy 250/250 System Corruption 17% Temperature Cool (0) Movement Treading (240) Ox1 Location -10/Subcaves Parts ------- > --- POWER (1) -------- Ion Engine > --- PROPULSION (2) --- Light Treads Light Treads > --- UTILITY (2) ------ Disposable Heat Sink High-capacity Storage Unit > --- WEAPON (2) ------- Grenade Launcher > --- INVENTORY (20) --- Ion Engine Subdweller Monowheel Hover Unit Hover Unit Hover Unit Hover Unit Hover Unit Large Storage Unit High-capacity Storage Unit Medium Matter Pod (0) Light Armor Plating Tractor Beam Riot Gun Medium Laser Medium Laser Subdweller Laser Light Assault Rifle Makeshift Sword Peak State ------------ > --- POWER ------------ Ion Engine > --- PROPULSION ------- Wheel Subdweller Monowheel > --- UTILITY ---------- Disposable Heat Sink High-capacity Storage Unit > --- WEAPON ----------- Grenade Launcher Grenade Launcher > --- INVENTORY -------- Ion Engine Light Treads Light Treads Hover Unit Hover Unit Hover Unit Hover Unit Hover Unit Large Storage Unit High-capacity Storage Unit Medium Matter Pod Light Armor Plating Tractor Beam Riot Gun Medium Laser Medium Laser Subdweller Laser Light Assault Rifle Grenade Launcher Makeshift Sword [Rating: 11] Favorites ----------- Power Ion Engine Engine Ion Engine Propulsion Wheel Treads Light Treads Leg Aluminum Leg Wheel Wheel Utility High-capacity Storage Unit Device Terrain Scanner Storage High-capacity Storage Unit Protection Light Armor Plating Weapon Medium Laser Energy Gun Medium Laser Ballistic Gun Light Assault Rifle Launcher Grenade Launcher Build | -11 -10 -10 ------- Run | Yrd Mat Sub Slots Evolved . | . . . Power . | . . . Propulsion . | . . . Utility . | . . . Weapon . | . . . Parts Attached 24 | . 15 9 Power 1 | . 1 . Engine 1 | . 1 . Core . | . . . Reactor . | . . . Propulsion 9 | . 4 5 Treads 4 | . 2 2 Leg . | . . . Wheel 5 | . 2 3 Hover . | . . . Flight . | . . . Utility 7 | . 6 1 Device 2 | . 1 1 Storage 3 | . 3 . Processor . | . . . Hackware . | . . . Protection 2 | . 2 . Artifact . | . . . Weapon 7 | . 4 3 Energy Gun 2 | . 2 . Energy Cannon . | . . . Ballistic Gun . | . . . Ballistic Cannon . | . . . Launcher 5 | . 2 3 Special Weapon . | . . . Impact Weapon . | . . . Slashing Weapon . | . . . Piercing Weapon . | . . . Special Melee Weapon . | . . . Unidentified Prototypes . | . . . Parts Lost 11 | . 5 6 Power 1 | . 1 . Propulsion 4 | . 1 3 Utility 2 | . 1 1 Weapon 4 | . 2 2 Highest Loss Streak 3 | . 3 2 To Critical Strikes . | . . . Average Backups 14 | . 10 18 Power . | . . 1 Propulsion 6 | . 5 6 Utility 3 | . 2 5 Weapon 3 | . 1 5 Tool/Special . | . . . Unused Backups 22 | . 7 15 Power 2 | . 1 1 Propulsion 9 | . 4 5 Utility 6 | . 2 4 Weapon 5 | . . 5 Tool/Special . | . . . Average Slot Usage (%) 94 | . 93 95 Engine 11 | . 10 14 Treads 9 | . 13 4 Wheel 16 | . 12 22 Device 4 | . 4 4 Storage 14 | . 14 14 Protection 6 | . 6 6 Energy Gun 14 | . 21 5 Launcher 12 | . 5 21 Peak Build Rating 11 | . 8 11 Average Rating 8 | . 7 9 On Entrance 6 | 6 6 8 Avg Prop Armor Cover (%) 6 | . 8 4 Naked Turns . | . . . Heaviest Build 54 | 11 52 54 Greatest Support 40 | 20 40 40 Greatest Overweight (x) 5 | . 2 5 Average Overweight (x) 1 | . . 1 Largest Inventory Capacity 20 | . 20 20 Average Capacity 17 | . 16 20 Most Carried 20 | . 18 20 Average Carried 14 | . 10 18 Final Capacity 20 | 8 20 20 Final Carried 18 | 6 18 18 Class Distribution -------------------- 100% | Mutant Dominant Class ---------------- Mutant | -10/Materials Mutant | -10/Subcaves Resources | -11 -10 -10 ----------- Run | Yrd Mat Sub Matter Collected 1077 | 200 451 426 Remotely . | . . . Salvage Created 920 | . 672 248 Parts 67 | . 43 24 Haulers Intercepted 2 | . 2 . Recyclers Shooed . | . . . Parts Field Recycled . | . . . Retrieved Matter . | . . . Parts Self-Destructed 6 | . . 6 Prevented . | . . . Parts Restored . | . . . Kills | -11 -10 -10 ------- Run | Yrd Mat Sub Combat Hostiles Destroyed 34 | . 18 16 Guns 8 | . 8 . AOE 26 | . 10 16 Classes Destroyed 10 | . 7 3 Worker 3 | . 3 . Builder 2 | . 2 . Tunneler 2 | . 2 . Hauler 2 | . 2 . Recycler 1 | . 1 . Turret 2 | . . 2 Swarmer 10 | . 6 4 Grunt 14 | . 12 2 Artisan 1 | . . 1 Subdweller 10 | . . 10 Best Kill Streak 7 | . 7 4 Combat Bots Only 4 | . 4 4 Max Kills in Single Turn 4 | . 4 3 Gunslinging 1 | . 1 . Exploded 3 | . 2 3 Melee . | . . . Uniques/NPCs Destroyed . | . . . Combat | -11 -10 -10 -------- Run | Yrd Mat Sub Hostile Shots Fired 153 | . 71 82 Missed 59 | . 23 36 Hits 94 | . 48 46 Projectile 94 | . 48 46 Critical Strikes 2 | . . 2 Damage Taken 1793 | . 845 948 Core 265 | . 45 220 Absorbed by Shields . | . . . Regen/Repaired (Parts) 56 | . 56 . Core Remaining (%) 100 | 100 . . Volleys Fired 76 | . 48 28 Largest 2 | . 2 2 Hottest 100 | . 100 100 Shots Fired 144 | . 93 51 Gun 74 | . 70 4 Cannon . | . . . Launcher 70 | . 23 47 Special . | . . . Kinetic . | . . . Thermal 74 | . 70 4 Explosive 70 | . 23 47 Electromagnetic . | . . . Robot Hit Streak 20 | . 20 12 Robot Miss Streak 3 | . 2 3 Penetration Max . | . . . Secondary Targets 1 | . 1 . Max Gunslinging Chain 1 | . 1 . Shots Hit Robots 89 | . 57 32 Core Hits 78 | . 43 35 Critical Kills . | . . . Critical Parts Destroyed . | . . . Critical Strikes 5 | . 5 . Burn 5 | . 5 . Melee Attacks . | . . . Impact . | . . . Slashing . | . . . Piercing . | . . . Sneak Attacks . | . . . Combat Hostiles . | . . . Follow-up Attacks . | . . . Damage Inflicted 3744 | . 1752 1992 Guns 605 | . 605 . Cannons . | . . . Explosions 3128 | . 1147 1981 Melee . | . . . Ramming 11 | . . 11 Kinetic . | . . . Thermal 605 | . 605 . Explosive 3128 | . 1147 1981 Electromagnetic . | . . . Impact . | . . . Slashing . | . . . Piercing . | . . . Highest Corruption 17 | . 8 17 Average Corruption 11 | . 8 12 Corruption Purged . | . . . Corruption Blocked . | . . . Effects 51 | . 19 32 Message Errors 3 | . . 3 Matter Fused 19 | . 6 13 Heat Flow Errors 6 | . 3 3 Energy Discharges 7 | . 2 5 Parts Rejected 1 | . . 1 Data Loss (minor) 8 | . 4 4 Data Loss (major) 1 | . . 1 Misfires 3 | . 2 1 Alerts 1 | . . 1 Weapon Failures 2 | . 2 . Overload Shots . | . . . Overflow Damage 69 | . 46 23 Projectiles . | . . . Explosions 69 | . 46 23 Melee . | . . . Knockbacks 1 | . . 1 Impact 1 | . . 1 Kinetic . | . . . Secondary . | . . . Self-Inflicted Damage 260 | . 88 172 Shots 17 | . 6 11 Rammed 3 | . . 3 Targets Rammed 3 | . . 3 Kicked . | . . . Crushed . | . . . Highest Temperature 311 | . 311 239 Average Temperature 96 | . 97 87 Received Heat Transfer 462 | . 258 204 Effects 2 | . 2 . Energy Bleed 2 | . 2 . Siege Activations . | . . . Martial Activations . | . . . Shielding Activations . | . . . Robots Disrupted . | . . . Combat Hostiles . | . . . Robots Corrupted . | . . . Combat Hostiles . | . . . Parts Fried . | . . . Impact Corruptions . | . . . Robots Melted . | . . . Combat Hostiles . | . . . Parts Melted 4 | . 4 . Heat Transferred 2146 | . 2146 . Parts Sabotaged . | . . . Parts Stolen . | . . . Parts Stripped . | . . . Power Chain Reactions . | . . . Alert | -11 -10 -10 ------- Run | Yrd Mat Sub Maximum Alert Level 2 | . 2 . Low Security (%) 33 | . 33 . Level 1 65 | . 65 . Level 2 . | . . . Level 3 . | . . . Level 4 . | . . . Level 5 . | . . . High Security . | . . . Max Security . | . . . Peak Influence 403 | . 403 . Initial . | . . . Average 203 | . 203 . Influence Increases 919 | . 659 260 Destroy 0b10 Robot/C 520 | . 360 160 Destroy 0b10 Robot/NC 50 | . 50 . Destroy Leader 94 | . 84 10 Successful Hack 25 | . 25 . Disable Machine 45 | . 45 . Destroy Structure 65 | . 65 . Lose Combat Pursuer 120 | . 30 90 Influence Decreases 919 | . 420 499 Entered New Map 115 | . . 115 Time Decay 694 | . 370 324 Lost Part 110 | . 50 60 Squads Dispatched 4 | . 4 . Investigation 4 | . 4 . Extermination . | . . . Reinforcement . | . . . Assault . | . . . Garrison . | . . . Intercept . | . . . Searches Triggered . | . . . Construction Impeded . | . . . Haulers Reinforced . | . . . Active Scanning Responses . | . . . Cargo Convoy Interrupts . | . . . Stealth | -11 -10 -10 --------- Run | Yrd Mat Sub Distress Signals 2 | . 2 . Communications Jammed . | . . . Distress Signals . | . . . Times Spotted 55 | . 35 20 Peak Tracking Total 6 | . 4 6 Tactical Retreats 4 | . 1 3 Traps | -11 -10 -10 ------- Run | Yrd Mat Sub Traps Triggered 2 | . 2 . Indirectly . | . . . Trap Hack Attempts . | . . . Triggered . | . . . Disarmed . | . . . Reprogrammed . | . . . Reused . | . . . Traps Extracted . | . . . Installed . | . . . Triggered . | . . . Machines | -11 -10 -10 ---------- Run | Yrd Mat Sub Machines Disabled 8 | . 4 4 Max in Single Turn 3 | . 1 3 Machines Repaired . | . . . Machines Dismantled . | . . . Machines Sabotaged . | . . . Overloaded Fab Kills . | . . . Hacking | -11 -10 -10 --------- Run | Yrd Mat Sub Machines Accessed 8 | . 8 . Terminals 7 | . 7 . Fabricators . | . . . Repair Stations 1 | . 1 . Recycling Units . | . . . Scanalyzers . | . . . Garrison Access . | . . . Total Hacks 29 | . 29 . Successful 16 | . 16 . Failed 13 | . 13 . Catastrophic . | . . . Database Lockouts . | . . . Manual 19 | . 19 . Terminals 27 | . 27 . Fabricators . | . . . Repair Stations 2 | . 2 . Recycling Units . | . . . Scanalyzers . | . . . Garrison Access . | . . . Terminal Hacks 9 | . 9 . Robot Analysis 1 | . 1 . Prototype ID Bank 4 | . 4 . Alert Level 2 | . 2 . Maintenance Status 1 | . 1 . Zone Layout 1 | . 1 . Fabricator Hacks . | . . . Repair Station Hacks 2 | . 2 . Scan Component 1 | . 1 . Repair 1 | . 1 . Recycling Unit Hacks . | . . . Scanalyzer . | . . . Garrison Access Hacks . | . . . Unauthorized Hacks 5 | . 5 . Terminals 5 | . 5 . Botnet 5 | . 5 . Fabricators . | . . . Repair Stations . | . . . Recycling Units . | . . . Scanalyzers . | . . . Garrison Access . | . . . Data Cores Recovered . | . . . Used . | . . . Hacking Detections 7 | . 7 . Full Trace Events 2 | . 2 . Feedback Events . | . . . Feedback Blocked . | . . . Robot Schematics Acquired . | . . . Robots Built . | . . . Authchips . | . . . Time . | . . . Total Robot Build Rating . | . . . Part Schematics Acquired . | . . . Parts Built . | . . . Authchips . | . . . Time . | . . . Total Part Build Rating . | . . . Part Studies Acquired . | . . . Parts Repaired 1 | . 1 . Time 26 | . 26 . Parts Recycled . | . . . Recycled Matter . | . . . Retrieved Matter . | . . . Retrieved Components . | . . . Parts Scanalyzed . | . . . Part Schematics Acquired . | . . . Parts Damaged . | . . . Bothacking | -11 -10 -10 ------------ Run | Yrd Mat Sub Used RIF Installer . | . . . Robots Hacked . | . . . Non-combat . | . . . Combat . | . . . Robot Hacks Applied . | . . . Relay Couplers Released . | . . . Fabnet Peak Effective % . | . . . Robots Rewired . | . . . Allies Hacked . | . . . Hacks Repelled . | . . . Allies | -11 -10 -10 -------- Run | Yrd Mat Sub Total Allies . | . . . Largest Group . | . . . Highest-Rated Group . | . . . Highest-Rated Ally . | . . . Total Orders . | . . . Ally Attacks . | . . . Total Damage . | . . . Kills . | . . . Allies Corrupted . | . . . Allies Melted . | . . . Intel | -11 -10 -10 ------- Run | Yrd Mat Sub Active Infowar (turns) 430 | . 430 . Terrain 430 | . 430 . Robot Analysis Total 1 | . 1 . Derelict Logs Recovered . | . . . Drone Launches . | . . . Drone Recoveries . | . . . Exploration | -11 -10 -10 ------------- Run | Yrd Mat Sub Turns Passed 2144 | . 1223 921 Spaces Moved 1441 | 1 783 657 Core . | . . . Treads 363 | . 306 57 Legs 37 | 1 36 . Wheels 1041 | . 441 600 Hover . | . . . Flight . | . . . Fastest Speed 95 | 120 95 107 Average Speed 125 | 120 128 122 Slowest Speed 240 | 120 240 240 Overloaded Moves . | . . . Propulsion Burnouts . | . . . Robots Hopped . | . . . Potential Cave-ins 1 | . . 1 Cave-ins Triggered 2 | . 1 1 Exploration Rate (%) 45 | 1 88 46 Regions Visited 2 Branch Regions 1 Pre-discovered Areas . | . . . Known Exits Taken . | . . . Unknown Exits Taken 2 | 1 1 . Scrap Searched 4 | . . 4 Spaces Dug . | . . . Terrain Destroyed 256 | . 70 186 Melee . | . . . Projectile . | . . . AOE 256 | . 70 186 Terrain Rammed . | . . . Walls Destroyed . | . . . Machines Disabled . | . . . Actions | -11 -10 -10 --------- Run | Yrd Mat Sub Total 1622 | . 904 718 Wait 43 | . 30 13 Move 1439 | . 782 657 Hop . | . . . Pick Up 23 | . 18 5 Fast Attach 7 | . 4 3 Attach 8 | . 5 3 Detach 2 | . 2 . Swap 14 | . 10 4 Drop 7 | . 5 2 Fire 76 | . 48 28 Melee . | . . . Ram . | . . . Kick . | . . . Crush 3 | . . 3 Escape Stasis . | . . . Rewire . | . . . Trap . | . . . Miscellaneous . | . . . Route ------- -11/Scrapyard -10/Materials (discovered 4 exits: [*Mat x2] / [*Min] / [*Sub]) -10/Subcaves (discovered 2 exits: [*Mat] / [*Rec]) History --------- Turn | Location | Event 1 | -11/Scrapyard | Discovered new exit (range 0) 1 | -11/Scrapyard | Entered Materials 309 | -10/Materials | Build established: Mutant 370 | -10/Materials | Discovered new exit (range 11) 659 | -10/Materials | Crushed by falling debris 690 | -10/Materials | Lost 3 parts (1n2w) 746 | -10/Materials | Discovered new exit (range 15) 830 | -10/Materials | Discovered new exit (range 15) 997 | -10/Materials | Repaired Ion Engine 1213 | -10/Materials | Discovered new exit (range 11) 1224 | -10/Materials | Entered Subcaves 1225 | -10/Subcaves | Approached by a straggling Scientist 1568 | -10/Subcaves | Shifting Twisted Machinery released Shrapnel Trap 1610 | -10/Subcaves | Discovered new exit (range 12) 1631 | -10/Subcaves | A swath of the cavern ceiling suddenly collapsed 1646 | -10/Subcaves | Crushed by falling debris 1646 | -10/Subcaves | Core integrity fell below 50% 1646 | -10/Subcaves | System corruption reached 10% 1835 | -10/Subcaves | Ambushed by Subdweller buried in earth 1934 | -10/Subcaves | A swath of the cavern ceiling suddenly collapsed 1978 | -10/Subcaves | Core integrity fell below 20% 2077 | -10/Subcaves | Discovered new exit (range 11) 2115 | -10/Subcaves | Ambushed by angry Subdweller bent on revenge 2145 | -10/Subcaves | Destroyed self with Grenade Launcher Last Messages --------------- 02014_ Subatomizers dissect the Sub. Power Source. 02032_ System corrupted: Component data lost. 02051_ System corrupted: FCS attempts to trigger Grenade Launcher. 02051_ System corrupted: Grenade Launcher misfires. 02066_ System corrupted: Matter fused (-9). 02077_ EXIT=FOUND 02082_ System corrupted: Component data lost. 02104_ System corrupted: Matter fused (-8). 02113_ AQ-79K(u) cries out in pain. 02113_ AQ-79K(u) destroyed. 02113_ Grenade Launcher destroyed. 02113_ Destroyed Grenade Launcher. 02115_ YO-OF4(R) angrily emerges from the Twisted Machinery. 02115_ YO-OF4(R): "OHNO!" 02121_ System corrupted: Lgt. Treads rejected. 02121_ Acquired Lgt. Treads. 02137_ System corrupted: Energy discharge (-70). 02138_ Slammed into YO-OF4(R). 02138_ YO-OF4(R) knocked back. 02140_ Slammed into YO-OF4(R). Map ----- +----------------------------------------------------+ | ?????????????????????????????????????????????????? | | ?????????????????????????????????????????????????? | | ?????????????????????????????????????????????????? | | ?????????????????????????????????????????????????? | | ?????????????????????????????????????????????????? | | ?????????????????????????????????????????????????? | | ?????????????????????????????????????????????????? | | ?????????????????????????????????????????????????? | | ?????????????????????????????????????????????????? | | ?????????????????????????????????????????????????? | | ?????????????????????????????????????????????????? | | ??????????????????????????? ????????????????????? | | ??????????????????????????? "??????????????????? | | ??????????????????????????? "